bitfinex-derivatives/quotes_BNBF0:USTF0_20250715
["timestamp","ask_amount","ask_price","bid_price","bid_amount"]
[1752609144254,0.9767594,684.65,683.86,0.98227056]
[1752609145960,0.9767594,684.67,683.85,0.98227056]
[1752609146156,0.9767594,684.68,683.84,0.98227056]
[1752609146355,0.9767594,684.77,683.78,0.98227056]
[1752609146660,0.9767594,684.77,683.79,0.98227056]
[1752609146960,0.9767594,684.64,683.88,0.98227056]
[1752609147255,0.9767594,684.63,683.89,0.98227056]
[1752609147460,0.9767594,684.64,683.88,0.98227056]
[1752609147762,0.9767594,684.65,683.88,0.98227056]
[1752609148061,0.9767594,684.69,683.86,0.98227056]
[1752609148262,0.9767594,684.68,683.87,0.98227056]
[1752609149459,0.9767594,684.68,683.43,0.25430045]
[1752609149460,0.9767594,684.71,683.92,0.98227056]
[1752609149661,0.9767594,684.73,683.94,0.98227056]
[1752609149861,0.9767594,684.75,683.96,0.98227056]
[1752609150364,0.9767594,684.75,683.97,0.98227056]
[1752609150558,0.9767594,684.82,684.05,0.98227056]
[1752609150862,0.9767594,684.8,684.07,0.98227056]
[1752609151064,0.9767594,684.85,684.11,0.98227056]
[1752609151462,0.9767594,684.84,684.11,0.98227056]
[1752609151665,0.9767594,684.93,684.19,0.98227056]
[1752609153159,0.9767594,684.96,684.2,0.98227056]
[1752609153363,0.9767594,684.95,684.21,0.98227056]
[1752609153960,0.9767594,684.96,684.22,0.98227056]
[1752609154164,0.9767594,684.99,684.2,0.98227056]
[1752609154461,0.9767594,685.02,684.24,0.98227056]
[1752609155164,0.9767594,685.03,684.23,0.98227056]
[1752609156164,0.9767594,685.05,684.22,0.98227056]
[1752609156866,0.9767594,685.12,684.17,0.98227056]
[1752609157267,0.9767594,685.13,684.16,0.98227056]
[1752609157964,0.9767594,685.14,684.15,0.98227056]
[1752609158263,0.9767594,685.15,684.14,0.98227056]
[1752609159168,0.9767594,685.16,684.14,0.98227056]
[1752609159368,0.9767594,685.16,684.13,0.98227056]
[1752609160167,0.9767594,685.14,684.15,0.98227056]
[1752609160367,0.9767594,685.15,684.14,0.98227056]
[1752609160673,0.9767594,685.1,684.17,0.98227056]
[1752609161166,0.9767594,685.11,684.17,0.98227056]
[1752609161367,0.9767594,685.12,684.16,0.98227056]
[1752609161569,0.9767594,685.11,684.18,0.98227056]
[1752609161970,0.9767594,685.13,684.2,0.98227056]
[1752609162167,0.9767594,685.13,683.93,1.967014]
[1752609162168,0.9767594,685.14,684.19,0.98227056]
[1752609162571,0.9767594,685.21,684.15,0.98227056]
[1752609162970,0.9767594,685.21,684.14,0.98227056]
[1752609163170,0.9767594,685.22,684.14,0.98227056]
[1752609163373,0.9767594,685.23,684.14,0.98227056]
[1752609164175,0.9767594,685.24,684.14,0.98227056]
[1752609164473,0.9767594,685.27,684.12,0.98227056]
[1752609165170,0.9767594,685.29,684.12,0.98227056]
[1752609165470,0.9767594,685.32,684.21,0.98227056]
[1752609166174,0.9767594,685.34,684.2,0.98227056]
[1752609167171,0.9767594,685.37,684.2,0.98227056]
[1752609167575,0.9767594,685.39,684.22,0.98227056]
[1752609168079,0.25406652,685.44,683.43,0.25430045]
[1752609168080,0.9767594,685.4,684.2,0.98227056]
[1752609168277,0.9767594,685.41,684.2,0.98227056]
[1752609168575,0.9767594,685.42,684.19,0.98227056]
[1752609169185,0.9767594,685.43,684.18,0.98227056]
[1752609169376,1.23082592,685.44,684.18,0.98227056]
[1752609170182,1.23082592,685.44,684.17,0.98227056]
[1752609170781,0.9767594,685.42,684.18,0.98227056]
[1752609171079,0.9767594,685.34,684.24,0.98227056]
[1752609171281,0.9767594,685.34,684.23,0.98227056]
[1752609171482,0.9767594,685.34,684.22,0.98227056]
[1752609172579,0.25406652,685.44,684.1,1.3113427]
[1752609172878,0.25406652,685.44,683.43,0.25430045]
[1752609181084,0.25406652,685.44,684.13,0.9733656]
[1752609181490,0.96742122,685.33,684.04,0.9733656]
[1752609183190,0.96742122,685.32,684.04,0.9733656]
[1752609183390,0.96742122,685.32,684.05,0.9733656]
[1752609184190,0.96742122,685.31,684.05,0.9733656]
[1752609185195,0.96742122,685.31,684.06,0.9733656]
[1752609185690,0.96742122,685.33,684.04,0.9733656]
[1752609186194,0.96742122,685.32,684.04,0.9733656]
[1752609186691,0.96742122,685.31,684.05,0.9733656]
[1752609188191,0.96742122,685.3,684.06,0.9733656]
[1752609189194,0.96742122,685.28,684.07,0.9733656]
[1752609190196,0.96742122,685.27,684.08,0.9733656]
[1752609191194,0.96742122,685.26,684.09,0.9733656]
[1752609192096,0.96742122,685.27,684.09,0.9733656]
[1752609192296,0.96742122,685.26,684.09,0.9733656]
[1752609193297,0.96742122,685.25,684.1,0.9733656]
[1752609194199,0.96742122,685.24,684.11,0.9733656]
[1752609195102,0.96742122,685.23,684.12,0.9733656]
[1752609195504,0.96742122,685.2,684.14,0.9733656]
[1752609195907,0.96742122,685.19,684.15,0.9733656]
[1752609197305,0.96742122,685.17,684.16,0.9733656]
[1752609197909,0.96742122,685.18,684.16,0.9733656]
[1752609198209,0.96742122,685.17,684.17,0.9733656]
[1752609198506,0.96742122,685.16,684.17,0.9733656]
[1752609199210,0.96742122,685.15,684.18,0.9733656]
[1752609200107,0.96742122,685.14,684.19,0.9733656]
[1752609200510,0.25406652,685.44,684.18,0.9733656]
[1752609200511,0.96742122,685.13,684.18,0.9733656]
[1752609200804,0.96742122,685.13,684.19,0.9733656]
[1752609201010,0.96742122,685.13,684.18,0.9733656]
[1752609201207,0.96742122,685.12,684.2,0.9733656]
[1752609202209,0.96742122,685.09,684.21,0.9733656]
[1752609202412,0.96742122,685.09,684.22,0.9733656]
[1752609202607,0.96742122,685.09,684.21,0.9733656]
[1752609203108,0.96742122,685.07,684.23,0.9733656]
[1752609204613,0.96742122,684.99,684.16,0.9733656]
[1752609204913,0.96742122,685.0,684.15,0.9733656]
[1752609205109,0.96742122,684.98,684.16,0.9733656]
[1752609206213,0.96742122,684.97,684.18,0.9733656]
[1752609207312,0.96742122,684.95,684.2,0.9733656]
[1752609208115,0.96742122,684.94,684.22,0.9733656]
[1752609208315,0.96742122,684.93,684.21,0.9733656]
[1752609209214,0.96742122,685.02,684.16,0.9733656]
[1752609209817,0.96742122,685.07,684.21,0.9733656]
[1752609210118,0.96742122,685.06,684.22,0.9733656]
[1752609210619,1.2898949,685.25,684.03,1.2978208]
[1752609210816,0.97590173,685.06,684.22,0.98239172]
[1752609211119,0.97590173,685.05,684.23,0.98239172]
[1752609211321,0.97590173,685.06,684.23,0.98239172]
[1752609212118,0.97590173,685.06,684.24,0.98239172]
[1752609214123,0.97590173,685.05,684.24,0.98239172]
[1752609215720,0.97590173,685.1,684.22,0.98239172]
[1752609216124,0.97590173,685.04,684.25,0.98239172]
[1752609216527,0.97617159,685.04,684.26,0.98266349]
[1752609216724,0.97617159,685.04,684.25,0.98266349]
[1752609217321,0.97617159,685.04,684.26,0.98266349]
[1752609217521,0.97617159,685.04,684.25,0.98266349]
[1752609218127,0.97617159,685.13,684.43,0.98266349]
[1752609218527,0.97617159,685.17,684.47,0.98266349]
[1752609218926,0.97617159,685.19,684.46,0.98266349]
[1752609219225,0.97617159,685.21,684.47,0.98266349]
[1752609220423,1.2898949,685.38,684.47,0.98266349]
[1752609220424,0.97617159,685.22,684.47,0.98266349]
[1752609222126,0.97617159,685.2,684.48,0.98266349]
[1752609224230,0.97617159,685.21,684.48,0.98266349]
[1752609225230,0.97617159,685.21,684.47,0.98266349]
[1752609225426,0.97617159,685.2,684.47,0.98266349]
[1752609226130,0.97617159,685.21,684.47,0.98266349]
[1752609228333,0.97617159,685.17,684.49,0.98266349]
[1752609228930,0.97617159,685.17,684.5,0.98266349]
[1752609229128,0.97617159,685.18,684.49,0.98266349]
[1752609229434,0.97617159,685.17,684.49,0.98266349]
[1752609230332,0.97617159,685.18,684.49,0.98266349]
[1752609230633,0.97617159,685.17,684.49,0.98266349]
[1752609230832,0.97617159,685.19,684.47,0.98266349]
[1752609231730,0.97617159,685.2,684.46,0.98266349]
[1752609232032,0.97617159,685.2,684.45,0.98266349]
[1752609233433,0.97617159,685.2,684.31,1.2978208]
[1752609233434,0.97617159,685.18,684.43,0.98266349]
[1752609233634,0.97617159,685.15,684.4,0.98266349]
[1752609233835,0.97617159,685.13,684.38,0.98266349]
[1752609234535,0.97617159,685.05,684.3,0.98266349]
[1752609235033,0.97617159,685.06,684.31,0.98266349]
[1752609235233,0.97617159,685.05,684.31,0.98266349]
[1752609235931,0.97617159,685.1,684.27,0.98266349]
[1752609236635,0.97617159,685.1,684.28,0.98266349]
[1752609238232,0.97617159,685.09,684.28,0.98266349]
[1752609238533,0.97547278,685.09,684.28,0.98196006]
[1752609239231,0.97547278,685.09,684.29,0.98196006]
[1752609240835,0.97547278,685.06,684.3,0.98196006]
[1752609241238,0.97547278,685.05,684.29,0.98196006]
[1752609241437,0.25406652,685.44,684.28,0.98196006]
[1752609241438,0.97547278,685.06,684.28,0.98196006]
[1752609241736,0.97547278,685.05,684.28,0.98196006]
[1752609244637,0.97547278,685.03,684.25,0.98196006]
[1752609244841,0.97547278,685.03,684.26,0.98196006]
[1752609245138,0.97547278,685.04,684.26,0.98196006]
[1752609245437,0.97547278,684.92,684.13,0.98196006]
[1752609245843,0.97547278,684.94,684.16,0.98196006]
[1752609246041,0.97547278,684.91,684.18,0.98196006]
[1752609246244,0.97547278,684.87,684.13,0.98196006]
[1752609247538,0.97547278,684.88,684.13,0.98196006]
[1752609247739,0.97547278,684.87,684.13,0.98196006]
[1752609248043,0.97547278,684.87,684.12,0.98196006]
[1752609248646,0.97547278,684.86,684.13,0.98196006]
[1752609249044,0.97547278,684.84,684.14,0.98196006]
[1752609249247,0.97547278,684.85,684.13,0.98196006]
[1752609250649,0.97547278,684.82,684.15,0.98196006]
[1752609250850,0.97547278,684.83,684.15,0.98196006]
[1752609251547,0.97547278,684.85,684.13,0.98196006]
[1752609251749,0.97547278,684.86,684.13,0.98196006]
[1752609252449,0.97547278,684.87,684.13,0.98196006]
[1752609252644,0.97547278,684.86,684.12,0.98196006]
[1752609253045,0.97547278,684.86,684.13,0.98196006]
[1752609253249,0.97547278,684.87,684.13,0.98196006]
[1752609253745,1.9348424,685.13,683.43,0.25430045]
[1752609253746,0.97547278,684.95,684.2,0.98196006]
[1752609256449,0.97547278,684.97,684.19,0.98196006]
[1752609256852,0.97547278,684.98,684.2,0.98196006]
[1752609258353,0.97547278,684.99,684.2,0.98196006]
[1752609258555,0.97547278,685.0,684.19,0.98196006]
[1752609260355,0.97547278,684.99,684.2,0.98196006]
[1752609260848,0.97547278,684.98,684.19,0.98196006]
[1752609261352,0.97547278,685.0,684.18,0.98196006]
[1752609261550,0.97547278,685.0,684.21,0.98196006]
[1752609261748,0.97547278,684.98,684.21,0.98196006]
[1752609262153,0.97547278,684.97,684.21,0.98196006]
[1752609262355,0.97547278,684.97,684.2,0.98196006]
[1752609262552,0.97547278,684.84,684.07,0.98196006]
[1752609262959,0.97547278,684.82,684.07,0.98196006]
[1752609263257,0.97547278,684.83,684.07,0.98196006]
[1752609263657,0.97547278,684.82,684.08,0.98196006]
[1752609264462,0.97547278,684.87,684.04,0.98196006]
[1752609265358,0.97547278,684.88,684.04,0.98196006]
[1752609266357,0.97547278,684.86,684.02,0.98196006]
[1752609266559,0.97547278,684.86,684.01,0.98196006]
[1752609267056,0.97547278,684.83,683.98,0.98196006]
[1752609267360,0.97547278,684.84,683.98,0.98196006]
[1752609267662,0.97547278,684.78,683.98,0.98196006]
[1752609267858,0.97547278,684.79,683.9,0.98196006]
[1752609268061,0.97547278,684.75,683.87,0.98196006]
[1752609268462,0.97547278,684.71,683.89,0.98196006]
[1752609268762,0.97547278,684.66,683.82,0.98196006]
[1752609269260,0.97547278,684.67,683.81,0.98196006]
[1752609269462,0.97547278,684.67,683.67,1.2978208]
[1752609269463,0.97547278,684.65,683.76,0.98196006]
[1752609270561,1.2898949,684.79,683.43,0.25430045]
[1752609270562,0.97547278,684.66,683.74,0.98196006]
[1752609271466,0.97547278,684.68,683.73,0.98196006]
[1752609272662,0.97547278,684.69,683.72,0.98196006]
[1752609273163,0.97547278,684.7,683.71,0.98196006]
[1752609273367,0.97547278,684.71,683.7,0.98196006]
[1752609273963,0.97547278,684.7,683.71,0.98196006]
[1752609274573,0.97547278,684.71,683.7,0.98196006]
[1752609275169,0.97547278,684.7,683.7,0.98196006]
[1752609275470,0.97547278,684.71,683.69,0.98196006]
[1752609275970,0.97547278,684.73,683.72,0.98196006]
[1752609276474,0.97547278,684.74,683.71,0.98196006]
[1752609276770,0.97547278,684.71,683.73,0.98196006]
[1752609277272,0.97547278,684.72,683.73,0.98196006]
[1752609277575,0.97547278,684.72,683.72,0.98196006]
[1752609278472,0.97547278,684.73,683.72,0.98196006]
[1752609279377,0.97547278,684.75,683.7,0.98196006]
[1752609280476,0.97547278,684.76,683.7,0.98196006]
[1752609280679,0.97547278,684.77,683.69,0.98196006]
[1752609280876,0.97547278,684.77,683.7,0.98196006]
[1752609281078,0.97547278,684.8,683.72,0.98196006]
[1752609281277,0.97547278,684.79,683.73,0.98196006]
[1752609281482,0.97547278,684.8,683.73,0.98196006]
[1752609282077,0.97547278,684.81,683.75,0.98196006]
[1752609282280,0.97547278,684.85,683.8,0.98196006]
[1752609282780,0.97547278,684.86,683.8,0.98196006]
[1752609283182,0.97547278,684.88,683.81,0.98196006]
[1752609283780,0.97547278,684.91,683.84,0.98196006]
[1752609284281,0.97547278,684.89,683.86,0.98196006]
[1752609284479,0.97547278,684.96,683.93,0.98196006]
[1752609285381,0.97547278,684.95,683.93,0.98196006]
[1752609286177,0.97547278,684.95,683.94,0.98196006]
[1752609286479,0.97547278,684.95,683.43,0.25430045]
[1752609286480,0.97547278,684.93,683.95,0.98196006]
[1752609286978,0.97547278,684.94,683.95,0.98196006]
[1752609287378,0.97547278,684.95,683.94,0.98196006]
[1752609287582,0.97547278,684.98,683.98,0.98196006]
[1752609288286,0.97547278,684.98,683.99,0.98196006]
[1752609288486,0.97547278,684.97,683.99,0.98196006]
[1752609289286,0.97547278,684.97,684.0,0.98196006]
[1752609290086,0.97547278,684.99,683.98,0.98196006]
[1752609290287,0.97547278,684.98,683.99,0.98196006]
[1752609290982,0.97547278,684.97,683.99,0.98196006]
[1752609291386,0.97547278,684.96,684.0,0.98196006]
[1752609292482,0.97547278,684.93,683.97,0.98196006]
[1752609293190,0.97547278,684.93,683.98,0.98196006]
[1752609293491,0.97547278,685.04,683.91,0.98196006]
[1752609293685,0.97547278,684.95,683.82,0.98196006]
[1752609294191,0.97547278,684.94,683.82,0.98196006]
[1752609294388,0.97547278,684.94,683.83,0.98196006]
[1752609295291,0.97547278,684.93,683.83,0.98196006]
[1752609295890,0.97547278,684.93,683.84,0.98196006]
[1752609296588,0.97547278,684.94,683.86,0.98196006]
[1752609297489,0.97547278,684.93,683.87,0.98196006]
[1752609297888,0.97547278,684.99,683.93,0.98196006]
[1752609298188,0.97547278,684.86,684.04,0.98196006]
[1752609298388,0.97547278,684.87,684.03,0.98196006]
[1752609299188,0.97547278,684.87,684.04,0.98196006]
[1752609299391,0.97547278,684.86,684.04,0.98196006]
[1752609299597,0.97547278,684.87,684.05,0.98196006]
[1752609299888,0.97547278,684.88,684.04,0.98196006]
[1752609300192,0.97547278,684.96,684.12,0.98196006]
[1752609300394,0.97547278,685.02,684.12,0.98196006]
[1752609300591,0.25406652,685.44,684.2,0.98196006]
[1752609300592,0.97547278,685.16,684.2,0.98196006]
[1752609300791,0.97547278,685.16,684.19,0.98196006]
[1752609301194,0.97547278,685.17,684.19,0.98196006]
[1752609301397,0.97547278,685.15,684.2,0.98196006]
[1752609301591,0.97547278,685.16,684.23,0.98196006]
[1752609302196,0.97547278,685.16,684.22,0.98196006]
[1752609302392,0.97547278,685.21,684.28,0.98196006]
[1752609302592,0.97547278,685.22,684.29,0.98196006]
[1752609302796,0.97547278,685.24,684.31,0.98196006]
[1752609302995,0.97547278,685.14,684.21,0.98196006]
[1752609303193,0.97547278,685.15,684.2,0.98196006]
[1752609303497,0.97547278,685.15,684.21,0.98196006]
[1752609303998,0.97547278,685.14,684.21,0.98196006]
[1752609304192,0.97547278,685.15,684.2,0.98196006]
[1752609304397,0.97547278,685.15,684.21,0.98196006]
[1752609304600,0.97547278,685.07,684.26,0.98196006]
[1752609305294,0.97547278,685.08,684.25,0.98196006]
[1752609305492,0.97547278,685.09,684.24,0.98196006]
[1752609306297,0.97547278,685.1,684.24,0.98196006]
[1752609307401,0.97547278,685.1,684.23,0.98196006]
[1752609307698,0.97547278,685.13,684.22,0.98196006]
[1752609308093,0.97547278,685.12,684.22,0.98196006]
[1752609308994,0.97547278,685.12,683.43,0.25430045]
[1752609308995,0.97547278,685.11,684.23,0.98196006]
[1752609309198,0.97547278,685.1,684.23,0.98196006]
[1752609309494,0.97331126,685.11,684.23,0.97933609]
[1752609310296,0.97331126,685.27,684.39,0.97933609]
[1752609310494,0.97331126,685.28,684.39,0.97933609]
[1752609311098,0.97331126,685.29,684.38,0.97933609]
[1752609311297,0.97331126,685.3,684.37,0.97933609]
[1752609311496,1.54396142,685.44,684.09,1.9467312]
[1752609311497,0.97331126,685.31,684.38,0.97933609]
[1752609311695,0.97331126,685.33,684.4,0.97933609]
[1752609312399,0.97331126,685.34,684.39,0.97933609]
[1752609312696,0.97331126,685.34,684.38,0.97933609]
[1752609313200,0.97331126,685.35,684.37,0.97933609]
[1752609314300,0.97331126,685.36,684.36,0.97933609]
[1752609315302,0.97331126,685.37,684.36,0.97933609]
[1752609316000,0.97331126,685.37,684.35,0.97933609]
[1752609316296,0.97331126,685.38,684.35,0.97933609]
[1752609316500,0.25406652,685.44,684.42,0.97703518]
[1752609317101,0.25406652,685.44,684.41,0.97703518]
[1752609317798,0.25406652,685.44,684.39,0.97703518]
[1752609318397,0.25406652,685.44,684.37,0.97703518]
[1752609319201,0.25406652,685.44,684.36,0.97703518]
[1752609320203,0.25406652,685.44,684.35,0.97703518]
[1752609321205,0.25406652,685.44,684.36,0.97703518]
[1752609322208,0.25406652,685.44,684.35,0.97703518]
[1752609323105,0.25406652,685.44,684.06,1.9467312]
[1752609323106,0.25406652,685.44,684.31,0.97703518]
[1752609323402,0.25406652,685.44,684.3,0.97703518]
[1752609323806,0.25406652,685.44,684.27,0.97703518]
[1752609325004,0.25406652,685.44,684.25,0.97703518]
[1752609325307,1.22601495,685.44,684.24,0.97703518]
[1752609325906,0.25406652,685.44,684.23,0.97703518]
[1752609327110,0.97194843,685.43,684.24,0.97703518]
[1752609327309,0.97194843,685.42,684.23,0.97703518]
[1752609329006,0.97194843,685.43,684.24,0.97703518]
[1752609329409,0.97194843,685.42,684.24,0.97703518]
[1752609329609,0.97194843,685.43,684.25,0.97703518]
[1752609330005,1.22601495,685.44,684.27,0.97703518]
[1752609330311,0.25406652,685.44,684.27,0.97703518]
[1752609330510,0.97194843,685.43,684.28,0.97703518]
[1752609330810,0.25406652,685.44,683.43,0.25430045]
[1752609330811,0.25406652,685.44,684.32,0.97703518]
[1752609331212,0.25406652,685.44,684.33,0.97703518]
[1752609331812,0.25406652,685.44,684.39,0.97703518]
[1752609333709,0.25406652,685.44,684.4,0.97703518]
[1752609333911,0.25406652,685.44,684.39,0.97703518]
[1752609334111,0.25406652,685.44,684.38,0.97703518]
[1752609335412,0.25406652,685.44,684.39,0.97703518]
[1752609336213,1.22601495,685.44,684.38,0.97703518]
[1752609336406,1.22601495,685.44,684.39,0.97703518]
[1752609336613,0.97194843,685.43,684.38,0.97703518]
[1752609336809,1.22601495,685.44,684.39,0.97703518]
[1752609337510,0.97194843,685.43,684.39,0.97703518]
[1752609338015,0.97194843,685.43,684.4,0.97703518]
[1752609339616,0.97194843,685.42,684.41,0.97703518]
[1752609340517,0.97194843,685.41,684.41,0.97703518]
[1752609341213,0.97194843,685.43,684.4,0.97703518]
[1752609341412,0.97194843,685.42,684.41,0.97703518]
[1752609341720,0.97194843,685.43,684.4,0.97703518]
[1752609341918,1.22601495,685.44,684.41,0.97703518]
[1752609342116,0.25406652,685.44,684.45,0.97703518]
[1752609342520,0.25406652,685.44,684.46,0.97703518]
[1752609342719,0.25406652,685.44,684.45,0.97703518]
[1752609342916,0.25406652,685.44,684.51,0.97703518]
[1752609344115,0.97194843,685.52,684.51,0.97703518]
[1752609344318,0.97194843,685.53,684.51,0.97703518]
[1752609344525,0.25397752,685.54,684.47,0.97703518]
[1752609345426,0.25397752,685.54,684.49,0.97703518]
[1752609345921,0.25397752,685.54,684.52,0.97703518]
[1752609348329,0.25397752,685.54,684.51,0.97703518]
[1752609348530,0.25397752,685.54,684.52,0.97703518]
[1752609349427,0.97194843,685.65,684.52,0.97703518]
[1752609349732,0.97194843,685.61,684.55,0.97703518]
[1752609350527,0.97194843,685.6,684.56,0.97703518]
[1752609350932,0.25395065,685.62,684.6,0.97703518]
[1752609351630,0.25395065,685.62,684.61,0.97703518]
[1752609352231,0.25395065,685.62,684.6,0.97703518]
[1752609353125,0.25395065,685.62,684.61,0.97703518]
[1752609354530,0.25395065,685.62,684.62,0.97703518]
[1752609355431,1.22589908,685.62,684.63,0.97703518]
[1752609356332,0.97194843,685.6,684.65,0.97703518]
[1752609357628,0.97194843,685.59,684.66,0.97703518]
[1752609358635,0.97194843,685.57,684.68,0.97703518]
[1752609359238,0.97194843,685.57,684.67,0.97703518]
[1752609359436,0.97194843,685.55,684.69,0.97703518]
[1752609359634,0.97194843,685.54,684.7,0.97703518]
[1752609360432,0.97194843,685.54,684.69,0.97703518]
[1752609360638,0.97194843,685.54,684.7,0.97703518]
[1752609361335,0.97194843,685.53,684.7,0.97703518]
[1752609361639,0.97194843,685.54,684.7,0.97703518]
[1752609362033,0.97194843,685.53,684.71,0.97703518]
[1752609362333,0.97194843,685.52,684.71,0.97703518]
[1752609362731,0.97194843,685.5,684.72,0.97703518]
[1752609362938,0.97194843,685.5,684.73,0.97703518]
[1752609363739,0.97194843,685.49,684.72,0.97703518]
[1752609364232,0.97194843,685.49,684.61,1.2978208]
[1752609364233,0.97194843,685.49,684.73,0.97703518]
[1752609364434,0.97194843,685.48,684.73,0.97703518]
[1752609364937,0.97194843,685.49,684.73,0.97703518]
[1752609365338,0.25395065,685.62,684.74,0.97703518]
[1752609365339,0.97194843,685.48,684.74,0.97703518]
[1752609366237,0.97194843,685.53,684.71,0.97703518]
[1752609367035,0.97194843,685.52,684.72,0.97703518]
[1752609367837,0.97194843,685.52,684.73,0.97703518]
[1752609368136,0.97194843,685.51,684.73,0.97703518]
[1752609369240,0.97194843,685.5,684.74,0.97703518]
[1752609369739,0.97194843,685.51,684.74,0.97703518]
[1752609370238,0.97194843,685.5,684.75,0.97703518]
[1752609370937,0.97194843,685.49,684.74,0.97703518]
[1752609375243,0.97194843,685.5,684.74,0.97703518]
[1752609376141,0.97194843,685.46,684.77,0.97703518]
[1752609378346,0.97194843,685.47,684.76,0.97703518]
[1752609378544,0.97194843,685.47,684.03,3.244552]
[1752609378545,0.97194843,685.46,684.77,0.97703518]
[1752609379046,0.97194843,685.49,684.75,0.97703518]
[1752609379548,0.97194843,685.48,684.75,0.97703518]
[1752609380446,0.97194843,685.49,684.75,0.97703518]
[1752609383645,0.97194843,685.5,684.74,0.97703518]
[1752609384248,0.97194843,685.5,684.75,0.97703518]
[1752609384448,0.97194843,685.49,684.75,0.97703518]
[1752609384947,0.97194843,685.53,684.73,0.97703518]
[1752609385143,0.97194843,685.52,684.73,0.97703518]
[1752609386146,0.97194843,685.53,684.73,0.97703518]
[1752609386444,0.97194843,685.52,684.74,0.97703518]
[1752609387149,0.97194843,685.51,684.73,0.97703518]
[1752609387346,0.97194843,685.51,684.74,0.97703518]
[1752609388352,0.97194843,685.49,684.75,0.97703518]
[1752609389350,0.97194843,685.48,684.76,0.97703518]
[1752609389954,0.97194843,685.45,684.78,0.97703518]
[1752609390353,0.97194843,685.44,684.79,0.97703518]
[1752609391457,0.97194843,685.4,684.82,0.97703518]
[1752609392151,0.97194843,685.39,684.82,0.97703518]
[1752609393160,0.97194843,685.39,684.83,0.97703518]
[1752609393362,0.97194843,685.38,684.82,0.97703518]
[1752609393959,0.97194843,685.43,684.87,0.97703518]
[1752609394158,0.97194843,685.43,684.88,0.97703518]
[1752609394662,0.97194843,685.47,684.92,0.97703518]
[1752609395156,0.97194843,685.47,684.93,0.97703518]
[1752609395961,0.97194843,685.48,684.92,0.97703518]
[1752609396160,0.97194843,685.48,684.93,0.97703518]
[1752609397159,0.97194843,685.47,684.93,0.97703518]
[1752609398359,0.97194843,685.47,684.94,0.97703518]
[1752609399167,0.97194843,685.46,684.94,0.97703518]
[1752609400165,0.97194843,685.41,684.91,0.97703518]
[1752609400966,0.97194843,685.38,684.89,0.97703518]
[1752609401265,0.97194843,685.38,684.66,1.9467312]
[1752609401266,0.97194843,685.37,684.9,0.97703518]
[1752609401869,0.97194843,685.36,684.89,0.97703518]
[1752609402065,0.97194843,685.35,684.87,0.97703518]
[1752609402268,0.97194843,685.34,684.88,0.97703518]
[1752609402769,0.97194843,685.31,684.85,0.97703518]
[1752609404169,0.97194843,685.3,684.86,0.97703518]
[1752609407171,0.97194843,685.3,684.87,0.97703518]
[1752609408174,0.97194843,685.31,684.86,0.97703518]
[1752609410475,0.97194843,685.32,684.87,0.97703518]
[1752609411074,0.97194843,685.35,684.91,0.97703518]
[1752609411275,0.97194843,685.36,684.91,0.97703518]
[1752609411778,0.97194843,685.35,684.91,0.97703518]
[1752609413983,0.97194843,685.36,684.91,0.97703518]
[1752609414581,0.97194843,685.44,684.85,0.97703518]
[1752609415380,0.97194843,685.49,684.82,0.97703518]
[1752609419792,0.97194843,685.52,684.8,0.97703518]
[1752609420087,0.97194843,685.53,684.79,0.97703518]
[1752609421191,0.97194843,685.58,684.82,0.97703518]
[1752609421390,0.97194843,685.61,684.85,0.97703518]
[1752609422690,0.97194843,685.59,684.83,0.97703518]
[1752609423090,0.97194843,685.57,684.84,0.97703518]
[1752609423495,0.97194843,685.55,684.85,0.97703518]
[1752609425191,0.97194843,685.56,684.85,0.97703518]
[1752609425394,0.97194843,685.55,684.86,0.97703518]
[1752609425690,0.97194843,685.54,684.86,0.97703518]
[1752609427097,0.97194843,685.55,684.86,0.97703518]
[1752609429706,0.97194843,685.54,684.86,0.97703518]
[1752609429895,0.97194843,685.54,684.46,1.9467312]
[1752609429896,0.97194843,685.46,684.88,0.97703518]
[1752609430193,0.97194843,685.46,684.87,0.97703518]
[1752609430399,0.97194843,685.45,684.89,0.97703518]
[1752609430597,0.25392193,685.7,683.91,3.244552]
[1752609430598,0.97194843,685.41,684.85,0.97703518]
[1752609431098,0.97194843,685.39,684.87,0.97703518]
[1752609431496,0.97194843,685.38,684.87,0.97703518]
[1752609432195,0.97194843,685.39,684.87,0.97703518]
[1752609432702,0.97194843,685.38,684.87,0.97703518]
[1752609432895,0.97194843,685.38,684.88,0.97703518]
[1752609433898,0.97194843,685.39,684.88,0.97703518]
[1752609434297,0.97194843,685.39,684.86,0.97703518]
[1752609434512,0.97194843,685.37,684.84,0.97703518]
[1752609435705,0.97194843,685.35,684.85,0.97703518]
[1752609439603,0.97194843,685.37,684.84,0.97703518]
[1752609443210,0.97194843,685.36,684.84,0.97703518]
[1752609444109,0.97194843,685.35,684.85,0.97703518]
[1752609446116,0.97194843,685.34,684.84,0.97703518]
[1752609446816,0.97194843,685.35,684.85,0.97703518]
[1752609448217,0.97194843,685.34,684.85,0.97703518]
[1752609449426,0.97194843,685.35,684.84,0.97703518]
[1752609449629,0.97194843,685.32,684.86,0.97703518]
[1752609450626,0.97194843,685.33,684.85,0.97703518]
[1752609451931,0.97194843,685.32,684.83,0.97703518]
[1752609452132,0.97194843,685.33,684.82,0.97703518]
[1752609452833,0.97194843,685.31,684.8,0.97703518]